fUST/lending_fUST_20250313
["ID","MTS","AMOUNT","RATE_DAILY","PERIOD"]
[356024699,1741804249453,-394.84998173,0.00022465,2]
[356024700,1741804249462,-597.27,0.00022465,2]
[356024701,1741804249472,-500.0,0.00022465,2]
[356024702,1741804249481,-500.0,0.00022465,2]
[356024703,1741804249490,-151.0,0.00022465,7]
[356024704,1741804249500,-500.0,0.00022465,2]
[356024705,1741804249509,-500.0,0.00022465,2]
[356024706,1741804249519,-500.0,0.00022465,2]
[356024707,1741804249528,-500.0,0.00022465,2]
[356024708,1741804249537,-500.0,0.00022465,2]
[356024709,1741804249549,-200.0,0.00022465,2]
[356024710,1741804249560,-500.0,0.00022465,2]
[356024711,1741804249569,-151.0,0.00022465,7]
[356024712,1741804249579,-500.0,0.00022465,2]
[356024713,1741804249588,-500.0,0.00022465,2]
[356024714,1741804249599,-500.0,0.00022465,2]
[356024715,1741804249608,-500.0,0.00022465,2]
[356024716,1741804249617,-500.0,0.00022465,2]
[356024717,1741804249627,-217.27264363,0.00022465,2]
[356024718,1741804249636,-500.0,0.00022465,2]
[356024719,1741804249647,-540.60914616,0.00022465,2]
[356024720,1741804249656,-500.0,0.00022465,2]
[356024721,1741804249665,-500.0,0.00022465,2]
[356024722,1741804249675,-500.0,0.00022465,2]
[356024723,1741804249734,-500.0,0.00022465,2]
[356024724,1741804249743,-500.0,0.00022465,2]
[356024725,1741804249753,-500.0,0.00022465,2]
[356024726,1741804249762,-500.0,0.00022465,2]
[356024727,1741804249771,-504.72440878,0.00022465,2]
[356024728,1741804249780,-161.402126,0.00022465,7]
[356024729,1741804249788,-500.0,0.00022465,2]
[356024730,1741804249798,-500.0,0.00022465,2]
[356024731,1741804249807,-500.0,0.00022465,2]
[356024732,1741804249816,-500.0,0.00022465,2]
[356024733,1741804249825,-500.0,0.00022465,2]
[356024734,1741804249835,-506.17,0.00022465,2]
[356024735,1741804249843,-500.0,0.00022465,2]
[356024736,1741804249852,-500.0,0.00022465,2]
[356024737,1741804249862,-523.61,0.00022465,2]
[356024738,1741804249871,-170.464188,0.00022465,7]
[356024739,1741804249880,-500.0,0.00022465,2]
[356024740,1741804249889,-151.0,0.00022465,7]
[356024741,1741804249898,-500.0,0.00022465,2]
[356024742,1741804249907,-513.70180223,0.00022465,2]
[356024743,1741804249916,-500.0,0.00022465,2]
[356024744,1741804249925,-500.0,0.00022465,2]
[356024745,1741804249935,-712.35,0.00022465,2]
[356024746,1741804249944,-500.0,0.00022465,2]
[356024747,1741804249953,-500.0,0.00022465,2]
[356024748,1741804249962,-500.0,0.00022465,2]
[356024749,1741804249971,-151.0,0.00022465,7]
[356024750,1741804249980,-500.0,0.00022465,2]
[356024751,1741804249990,-500.0,0.00022465,2]
[356024752,1741804249999,-151.0,0.00022465,7]
[356024753,1741804250008,-151.0,0.00022465,7]
[356024754,1741804250017,-500.0,0.00022465,2]
[356024755,1741804250027,-500.0,0.00022465,2]
[356024756,1741804250036,-500.0,0.00022465,2]
[356024757,1741804250045,-500.0,0.00022465,2]
[356024758,1741804250054,-598.68595098,0.00022465,2]
[356024759,1741804250063,-500.0,0.00022465,2]
[356024760,1741804250072,-512.83057655,0.00022465,2]
[356024761,1741804250082,-789.46,0.00022465,2]
[356024762,1741804250091,-975.12,0.00022465,2]
[356024763,1741804250100,-500.0,0.00022465,2]
[356024764,1741804250109,-974.8,0.00022465,2]
[356024765,1741804250118,-1166.77,0.00022465,2]
[356024766,1741804250127,-500.0,0.00022465,2]
[356024767,1741804250136,-1052.25,0.00022465,2]
[356024768,1741804250145,-503.63777399,0.00022465,2]
[356024769,1741804250154,-500.0,0.00022465,2]
[356024770,1741804250163,-500.0,0.00022465,2]
[356024771,1741804250172,-500.0,0.00022465,2]
[356024772,1741804250181,-500.0,0.00022465,2]
[356024773,1741804250190,-667.25,0.00022465,2]
[356024774,1741804250199,-151.0,0.00022465,7]
[356024775,1741804250208,-1500.08,0.00022465,2]
[356024776,1741804250217,-500.0,0.00022465,2]
[356024777,1741804250227,-1045.51,0.00022465,2]
[356024778,1741804250236,-415.73913894,0.00022465,2]
[356024779,1741804250245,-500.0,0.00022465,2]
[356024780,1741804250255,-500.0,0.00022465,2]
[356024781,1741804250265,-500.0,0.00022465,2]
[356024782,1741804250274,-960.45,0.00022465,2]
[356024783,1741804250284,-500.0,0.00022465,2]
[356024784,1741804250293,-500.0,0.00022465,2]
[356024785,1741804250302,-500.0,0.00022465,2]
[356024786,1741804250311,-500.0,0.00022465,2]
[356024787,1741804250321,-500.0,0.00022465,2]
[356024788,1741804250330,-567.61,0.00022465,2]
[356024789,1741804250339,-500.0,0.00022465,2]
[356024790,1741804250348,-500.0,0.00022465,2]
[356024791,1741804250357,-500.0,0.00022465,2]
[356024792,1741804250366,-500.0,0.00022465,2]
[356024793,1741804250376,-615.39,0.00022465,2]
[356024794,1741804250391,-500.0,0.00022465,2]
[356024795,1741804250400,-934.23,0.00022465,2]
[356024796,1741804250409,-500.0,0.00022465,2]
[356024797,1741804250418,-500.0,0.00022465,2]
[356024798,1741804250427,-500.0,0.00022465,2]
[356024799,1741804250436,-953.28,0.00022465,2]
[356024800,1741804250445,-500.0,0.00022465,2]
[356024801,1741804250455,-151.0,0.00022465,7]
[356024802,1741804250464,-500.0,0.00022465,2]
[356024803,1741804250473,-500.0,0.00022465,2]
[356024804,1741804250482,-500.0,0.00022465,2]
[356024805,1741804250492,-151.0,0.00022465,7]
[356024806,1741804250501,-151.0,0.00022465,7]
[356024807,1741804250511,-151.0,0.00022465,7]
[356024808,1741804250521,-500.0,0.00022465,2]
[356024809,1741804250531,-151.0,0.00022465,7]
[356024810,1741804250541,-500.0,0.00022465,5]
[356024811,1741804250554,-500.0,0.00022465,2]
[356024812,1741804250569,-500.0,0.00022465,2]
[356024813,1741804250578,-335.04563205,0.00022465,2]
[356024814,1741804250589,-500.0,0.00022465,2]
[356024815,1741804250598,-500.0,0.00022465,2]
[356024816,1741804250608,-500.0,0.00022465,2]
[356024817,1741804250618,-500.0,0.00022465,2]
[356024818,1741804250628,-151.0,0.00022465,7]
[356024819,1741804250637,-500.0,0.00022465,2]
[356024820,1741804250646,-151.0,0.00022465,7]
[356024821,1741804250656,-500.0,0.00022465,2]
[356024822,1741804250665,-500.0,0.00022465,2]
[356024823,1741804250674,-503.09,0.00022465,2]
[356024824,1741804250684,-500.0,0.00022465,2]
[356024825,1741804250694,-500.0,0.00022465,2]
[356024826,1741804250704,-500.0,0.00022465,2]
[356024827,1741804250713,-1823.59,0.00022465,2]
[356024828,1741804250722,-1079.2,0.00022465,2]
[356024829,1741804250732,-500.0,0.00022465,2]
[356024830,1741804250741,-500.0,0.00022465,2]
[356024831,1741804250751,-315.45195104,0.00022465,2]
[356024832,1741804250760,-151.0,0.00022465,7]
[356024833,1741804250770,-500.0,0.00022465,2]
[356024834,1741804250780,-500.0,0.00022465,2]
[356024835,1741804250790,-519.13,0.00022465,2]
[356024836,1741804250799,-500.0,0.00022465,2]
[356024837,1741804250809,-1879.28,0.00022465,2]
[356024838,1741804250819,-500.0,0.00022465,2]
[356024839,1741804250828,-584.69,0.00022465,2]
[356024840,1741804250838,-500.0,0.00022465,2]
[356024841,1741804250848,-500.0,0.00022465,2]
[356024842,1741804250857,-1161.91,0.00022465,2]
[356024843,1741804250867,-1715.04,0.00022465,2]
[356024844,1741804250876,-500.0,0.00022465,2]
[356024845,1741804250886,-151.0,0.00022465,7]
[356024846,1741804250895,-413.69860278,0.00022465,2]
[356024847,1741804250904,-1896.14,0.00022465,2]
[356024848,1741804250915,-500.0,0.00022465,2]
[356024849,1741804250925,-1122.11,0.00022465,2]
[356024850,1741804250935,-500.0,0.00022465,2]
[356024851,1741804250944,-500.0,0.00022465,2]
[356024852,1741804250954,-3093.84,0.00022465,2]
[356024853,1741804250963,-500.0,0.00022465,2]
[356024854,1741804250972,-500.0,0.00022465,2]
[356024855,1741804250982,-500.0,0.00022465,2]
[356024856,1741804250992,-555.52,0.00022465,2]
[356024857,1741804251001,-500.0,0.00022465,2]
[356024858,1741804251011,-500.0,0.00022465,2]
[356024859,1741804251020,-500.0,0.00022465,2]
[356024860,1741804251029,-500.0,0.00022465,2]
[356024861,1741804251038,-500.0,0.00022465,2]
[356024862,1741804251047,-500.0,0.00022465,2]
[356024863,1741804251056,-500.0,0.00022465,2]
[356024864,1741804251066,-1822.278558,0.00022465,7]
[356024865,1741804251075,-151.0,0.00022465,7]
[356024866,1741804251084,-1822.278558,0.00022465,7]
[356024867,1741804251094,-500.0,0.00022465,2]
[356024868,1741804251103,-500.0,0.00022465,2]
[356024869,1741804251113,-500.0,0.00022465,2]
[356024870,1741804251124,-500.0,0.00022465,2]
[356024871,1741804251133,-831.87,0.00022465,2]
[356024872,1741804251143,-975.749342,0.00022465,7]
[356024873,1741804251152,-575.6037553,0.00022465,2]
[356024874,1741804251161,-975.749342,0.00022465,7]
[356024875,1741804251171,-160.0,0.00022465,7]
[356024876,1741804251181,-500.0,0.00022465,2]
[356024877,1741804251191,-2356.2,0.00022465,2]
[356024878,1741804251200,-500.0,0.00022465,2]
[356024879,1741804251210,-151.0,0.00022465,7]
[356024880,1741804251219,-500.0,0.00022465,2]
[356024881,1741804251228,-500.0,0.00022465,2]
[356024882,1741804251238,-500.0,0.00022465,2]
[356024883,1741804251247,-611.4,0.00022465,2]
[356024884,1741804251257,-500.0,0.00022465,2]
[356024885,1741804251267,-1067.1,0.00022465,2]
[356024886,1741804251276,-151.0,0.00022465,7]
[356024887,1741804251285,-500.0,0.00022465,2]
[356024888,1741804251295,-7271.05,0.00022465,2]
[356024889,1741804251304,-161.672186,0.00022465,7]
[356024890,1741804251314,-151.0,0.00022465,7]
[356024891,1741804251323,-151.0,0.00022465,7]
[356024892,1741804251333,-161.672186,0.00022465,7]
[356024893,1741804251343,-1373.43,0.00022465,2]
[356024894,1741804251353,-1858.22,0.00022465,2]
[356024895,1741804251363,-160.616609,0.00022465,7]
[356024896,1741804251374,-500.0,0.00022465,2]
[356024897,1741804251384,-500.0,0.00022465,2]
[356024898,1741804251393,-500.0,0.00022465,2]
[356024899,1741804251402,-500.0,0.00022465,2]
[356024900,1741804251412,-500.0,0.00022465,2]
[356024901,1741804251422,-500.0,0.00022465,2]
[356024902,1741804251432,-500.0,0.00022465,2]
[356024903,1741804251441,-945.95,0.00022465,2]
[356024904,1741804251451,-500.0,0.00022465,2]
[356024905,1741804251462,-632.65,0.00022465,2]
[356024906,1741804251472,-500.0,0.00022465,2]
[356024907,1741804251482,-1083.81,0.00022465,2]
[356024908,1741804251491,-2442.51,0.00022465,2]
[356024909,1741804251501,-500.0,0.00022465,2]
[356024910,1741804251511,-821.2,0.00022465,2]
[356024911,1741804251521,-322.67675475,0.00022465,2]
[356024912,1741804251531,-500.0,0.00022465,2]
[356024913,1741804251542,-500.0,0.00022465,2]
[356024914,1741804251554,-649.83,0.00022465,2]
[356024915,1741804251563,-237.533866,0.00022465,7]
[356024916,1741804251573,-186.18517,0.00022465,7]
[356024917,1741804251583,-1186.49,0.00022465,2]
[356024918,1741804251593,-500.0,0.00022465,2]
[356024919,1741804251603,-940.96,0.00022465,2]
[356024920,1741804251614,-500.0,0.00022465,2]
[356024921,1741804251625,-151.0,0.00022465,7]
[356024922,1741804251635,-186.18517,0.00022465,7]
[356024923,1741804251646,-500.0,0.00022465,2]
[356024924,1741804251655,-605.28,0.00022465,2]
[356024925,1741804251665,-151.0,0.00022465,7]
[356024926,1741804251675,-500.0,0.00022465,2]
[356024927,1741804251685,-1030.38,0.00022465,2]
[356024928,1741804251695,-151.0,0.00022465,7]
[356024929,1741804251705,-500.0,0.00022465,2]
[356024930,1741804251715,-969.48,0.00022465,2]
[356024931,1741804251725,-151.0,0.00022465,7]
[356024932,1741804251735,-151.0,0.00022465,7]
[356024933,1741804251744,-500.0,0.00022465,2]
[356024934,1741804251754,-500.0,0.00022465,2]
[356024935,1741804251764,-774.17,0.00022465,2]
[356024936,1741804251773,-1093.96,0.00022465,2]
[356024937,1741804251783,-1182.11,0.00022465,2]
[356024938,1741804251793,-1459.08,0.00022465,2]
[356024939,1741804251803,-500.0,0.00022465,2]
[356024940,1741804251812,-151.0,0.00022465,7]
[356024941,1741804251822,-500.0,0.00022465,2]
[356024942,1741804251831,-1574.94,0.00022465,2]
[356024943,1741804251841,-500.0,0.00022465,2]
[356024944,1741804251851,-500.0,0.00022465,2]
[356024945,1741804251860,-366.862674,0.00022465,7]
[356024946,1741804251870,-552.92,0.00022465,2]
[356024947,1741804251879,-4645.43,0.00022465,2]
[356024948,1741804251889,-366.862674,0.00022465,7]
[356024949,1741804251899,-500.0,0.00022465,2]
[356024950,1741804251909,-500.0,0.00022465,2]
[356024951,1741804251919,-500.0,0.00022465,2]
[356024952,1741804251928,-500.0,0.00022465,2]
[356024953,1741804251937,-1099.73,0.00022465,2]
[356024954,1741804251947,-500.0,0.00022465,2]
[356024955,1741804251957,-42322.16,0.00022465,2]
[356024956,1741804251966,-500.0,0.00022465,2]
[356024957,1741804251976,-500.0,0.00022465,2]
[356024958,1741804251986,-1403.29,0.00022465,2]
[356024959,1741804251996,-673.82,0.00022465,2]
[356024960,1741804252006,-1452.65,0.00022465,2]
[356024961,1741804252016,-1408.01,0.00022465,2]
[356024962,1741804252026,-573.03,0.00022465,2]
[356024963,1741804252035,-963.85,0.00022465,2]
[356024964,1741804252045,-500.0,0.00022465,2]
[356024965,1741804252055,-2335.96,0.00022465,2]
[356024966,1741804252064,-500.0,0.00022465,2]
[356024967,1741804252074,-16057.6,0.00022465,2]
[356024968,1741804252084,-500.0,0.00022465,2]
[356024969,1741804252093,-500.0,0.00022465,2]
[356024970,1741804252103,-580.0,0.00022465,2]
[356024971,1741804252112,-500.0,0.00022465,2]
[356024972,1741804252123,-500.0,0.00022465,2]
[356024973,1741804252133,-500.0,0.00022465,2]
[356024974,1741804252142,-500.0,0.00022465,2]
[356024975,1741804252152,-1182.73,0.00022465,2]
[356024976,1741804252161,-1205.53,0.00022465,2]
[356024977,1741804252171,-500.0,0.00022465,2]
[356024978,1741804252180,-500.0,0.00022465,2]
[356024979,1741804252190,-1336.03,0.00022465,2]
[356024980,1741804252199,-500.0,0.00022465,2]
[356024981,1741804252209,-500.0,0.00022465,2]
[356024982,1741804252218,-1517.5,0.00022465,2]
[356024983,1741804252228,-1485.14,0.00022465,2]
[356024984,1741804252238,-500.0,0.00022465,2]
[356024985,1741804252248,-500.0,0.00022465,2]
[356024986,1741804252258,-500.0,0.00022465,2]
[356024987,1741804252267,-500.0,0.00022465,2]
[356024988,1741804252277,-500.0,0.00022465,2]
[356024989,1741804252287,-3210.25,0.00022465,2]
[356024990,1741804252298,-500.0,0.00022465,2]
[356024991,1741804252308,-999.57,0.00022465,2]
[356024992,1741804252317,-500.0,0.00022465,2]
[356024993,1741804252327,-888.63,0.00022465,2]
[356024994,1741804252337,-500.0,0.00022465,2]
[356024995,1741804252346,-1685.25,0.00022465,2]
[356024996,1741804252356,-500.0,0.00022465,2]
[356024997,1741804252365,-831.53,0.00022465,2]
[356024998,1741804252376,-818.26,0.00022465,2]
[356024999,1741804252386,-500.0,0.00022465,2]
[356025000,1741804252396,-541.7,0.00022465,2]
[356025001,1741804252407,-709.31,0.00022465,2]
[356025002,1741804252416,-2414.55,0.00022465,2]
[356025003,1741804252426,-1000.0,0.00022465,7]
[356025004,1741804252436,-3781.11,0.00022465,2]
[356025005,1741804252446,-500.0,0.00022465,2]
[356025006,1741804252456,-2194.41,0.00022465,2]
[356025007,1741804252466,-1148.91,0.00022465,2]
[356025008,1741804252476,-1103.67,0.00022465,2]
[356025009,1741804252486,-500.0,0.00022465,2]
[356025010,1741804252496,-1311.443614,0.00022465,7]
[356025011,1741804252506,-2784.48,0.00022465,2]
[356025012,1741804252516,-931.13,0.00022465,2]
[356025013,1741804252526,-1311.443614,0.00022465,7]
[356025014,1741804252536,-1892.94,0.00022465,2]
[356025015,1741804252546,-1383.42,0.00022465,2]
[356025016,1741804252559,-500.0,0.00022465,2]
[356025017,1741804252569,-151.0,0.00022465,7]
[356025018,1741804252579,-151.0,0.00022465,7]
[356025019,1741804252591,-199.425255,0.00022465,7]
[356025020,1741804252601,-199.425255,0.00022465,7]
[356025021,1741804252611,-199.425255,0.00022465,7]
[356025022,1741804252622,-500.0,0.00022465,2]
[356025023,1741804252634,-199.425255,0.00022465,7]
[356025024,1741804252644,-500.0,0.00022465,2]
[356025025,1741804252654,-458.287251,0.00022465,7]
[356025026,1741804252665,-500.0,0.00022465,2]
[356025027,1741804252674,-1343.7,0.00022465,2]
[356025028,1741804252684,-458.287251,0.00022465,7]
[356025029,1741804252694,-500.0,0.00022465,2]
[356025030,1741804252704,-946.01,0.00022465,2]
[356025031,1741804252715,-745.32,0.00022465,2]
[356025032,1741804252725,-655.4,0.00022465,2]
[356025033,1741804252735,-930.87,0.00022465,2]
[356025034,1741804252744,-500.0,0.00022465,2]
[356025035,1741804252754,-500.0,0.00022465,2]
[356025036,1741804252764,-209.609139,0.00022465,7]
[356025037,1741804252774,-209.609139,0.00022465,7]
[356025038,1741804252785,-151.0,0.00022465,7]
[356025039,1741804252795,-151.0,0.00022465,7]
[356025040,1741804252805,-500.0,0.00022465,2]
[356025041,1741804252814,-209.609139,0.00022465,7]
[356025042,1741804252823,-209.609139,0.00022465,7]
[356025043,1741804252833,-686.54,0.00022465,2]
[356025044,1741804252843,-1962.14,0.00022465,2]
[356025045,1741804252852,-151.0,0.00022465,7]
[356025046,1741804252862,-234.128418,0.00022465,7]
[356025047,1741804252873,-2819.17,0.00022465,2]
[356025048,1741804252883,-500.0,0.00022465,2]
[356025049,1741804252893,-317.80668087,0.00022465,2]
[356025050,1741804252903,-1445.89,0.00022465,2]
[356025051,1741804252913,-500.0,0.00022465,2]
[356025052,1741804252923,-500.0,0.00022465,2]
[356025053,1741804252934,-500.0,0.00022465,2]
[356025054,1741804252944,-500.0,0.00022465,2]
[356025055,1741804252953,-500.0,0.00022465,2]
[356025056,1741804252964,-355.54030018,0.00022465,2]
[356025057,1741804252974,-996.16,0.00022465,2]
[356025058,1741804252984,-235.98110283,0.00022465,2]
[356025059,1741804252994,-500.0,0.00022465,2]
[356025060,1741804253004,-500.0,0.00022465,2]
[356025061,1741804253014,-500.0,0.00022465,2]
[356025062,1741804253024,-772.1,0.00022465,2]
[356025063,1741804253034,-2046.27,0.00022465,2]
[356025064,1741804253045,-500.0,0.00022465,2]
[356025065,1741804253055,-500.0,0.00022465,2]
[356025066,1741804253065,-500.0,0.00022465,2]
[356025067,1741804253074,-500.0,0.00022465,2]
[356025068,1741804253084,-925.78,0.00022465,2]
[356025069,1741804253094,-500.0,0.00022465,2]
[356025070,1741804253104,-500.0,0.00022465,2]
[356025071,1741804253114,-353.0,0.00022648,3]
[356025072,1741804253125,-403.47516316,0.00022648,3]
[356025073,1741804253135,-344.65694257,0.00022648,3]
[356025074,1741804253145,-500.0,0.00022739,2]
[356025075,1741804253155,-721.84,0.00022739,2]
[356025076,1741804253165,-417.36339775,0.00022739,2]
[356025077,1741804253175,-500.0,0.00022739,2]
[356025078,1741804253185,-500.0,0.00022739,2]
[356025079,1741804253194,-635.14421015,0.00022739,2]
[356025080,1741804253204,-500.0,0.00022739,2]
[356025081,1741804253215,-500.0,0.00022739,2]
[356025082,1741804253225,-500.0,0.00022739,2]
[356025083,1741804253236,-500.0,0.00022739,2]
[356025084,1741804253246,-500.0,0.00022739,2]
[356025085,1741804253257,-685.26,0.00022739,2]
[356025086,1741804253267,-597.27,0.00022739,2]
[356025087,1741804253277,-500.0,0.00022739,2]
[356025088,1741804253286,-500.0,0.00022739,2]
[356025089,1741804253296,-258.908034,0.00022739,7]
[356025090,1741804253306,-500.0,0.00022739,2]
[356025091,1741804253315,-500.0,0.00022739,2]
[356025092,1741804253325,-500.0,0.00022739,2]
[356025093,1741804253336,-500.0,0.00022739,2]
[356025094,1741804253345,-500.0,0.00022739,2]
[356025095,1741804253355,-209.97664959,0.00022739,2]
[356025096,1741804253365,-500.0,0.00022739,2]
[356025097,1741804253378,-151.0,0.00022739,7]
[356025098,1741804253388,-500.0,0.00022739,2]
[356025099,1741804253397,-500.0,0.00022739,2]
[356025100,1741804253407,-500.0,0.00022739,2]
[356025101,1741804253418,-500.0,0.00022739,2]
[356025102,1741804253428,-500.0,0.00022739,2]
[356025103,1741804253439,-500.0,0.00022739,2]
[356025104,1741804253448,-500.0,0.00022739,2]
[356025105,1741804253459,-500.0,0.00022739,2]
[356025106,1741804253640,-500.0,0.00022739,2]
[356025107,1741804253651,-500.0,0.00022739,2]
[356025108,1741804253661,-506.17,0.00022739,2]
[356025109,1741804253671,-500.0,0.00022739,2]
[356025110,1741804253681,-523.61,0.00022739,2]
[356025111,1741804253691,-170.464188,0.00022739,7]
[356025112,1741804253700,-500.0,0.00022739,2]
[356025113,1741804253710,-500.0,0.00022739,2]
[356025114,1741804253719,-500.0,0.00022739,2]
[356025115,1741804253729,-712.35,0.00022739,2]
[356025116,1741804253739,-500.0,0.00022739,2]
[356025117,1741804253748,-500.0,0.00022739,2]
[356025118,1741804253758,-500.0,0.00022739,2]
[356025119,1741804253767,-520.04526823,0.00022739,2]
[356025120,1741804253776,-500.0,0.00022739,2]
[356025121,1741804253786,-151.0,0.00022739,7]
[356025122,1741804253795,-500.0,0.00022739,2]
[356025123,1741804253804,-508.30602889,0.00022739,2]
[356025124,1741804253814,-500.0,0.00022739,2]
[356025125,1741804253824,-789.46,0.00022739,2]
[356025126,1741804253833,-975.12,0.00022739,2]
[356025127,1741804253843,-500.0,0.00022739,2]
[356025128,1741804253852,-974.8,0.00022739,2]
[356025129,1741804253861,-1166.77,0.00022739,2]
[356025130,1741804253871,-1052.25,0.00022739,2]
[356025131,1741804253880,-500.0,0.00022739,2]
[356025132,1741804253890,-514.1262304,0.00022739,2]
[356025133,1741804253899,-667.25,0.00022739,2]
[356025134,1741804253909,-1500.08,0.00022739,2]
[356025135,1741804253918,-1045.51,0.00022739,2]
[356025136,1741804253929,-500.0,0.00022739,2]
[356025137,1741804253938,-500.0,0.00022739,2]
[356025138,1741804253948,-960.45,0.00022739,2]
[356025139,1741804253958,-500.0,0.00022739,2]
[356025140,1741804253967,-500.0,0.00022739,2]
[356025141,1741804253976,-511.02908351,0.00022739,2]
[356025142,1741804253987,-590.27136488,0.00022739,2]
[356025143,1741804253996,-567.61,0.00022739,2]
[356025144,1741804254006,-500.0,0.00022739,2]
[356025145,1741804254017,-274.44098617,0.00022739,2]
[356025146,1741804254027,-500.0,0.00022739,2]
[356025147,1741804254036,-615.39,0.00022739,2]
[356025148,1741804254046,-500.0,0.00022739,2]
[356025149,1741804254056,-934.23,0.00022739,2]
[356025150,1741804254065,-500.0,0.00022739,2]
[356025151,1741804254075,-500.0,0.00022739,2]
[356025152,1741804254085,-500.0,0.00022739,2]
[356025153,1741804254095,-953.28,0.00022739,2]
[356025154,1741804254104,-151.0,0.00022739,7]
[356025155,1741804254115,-500.0,0.00022739,2]
[356025156,1741804254127,-500.0,0.00022739,2]
[356025157,1741804254136,-621.24802495,0.00022739,2]
[356025158,1741804254146,-151.0,0.00022739,7]
[356025159,1741804254155,-151.0,0.00022739,7]
[356025160,1741804254165,-210.020573,0.00022739,7]
[356025161,1741804254175,-500.0,0.00022739,2]
[356025162,1741804254185,-151.0,0.00022739,7]
[356025163,1741804254195,-500.0,0.00022739,5]
[356025164,1741804254206,-522.19714049,0.00022739,2]
[356025165,1741804254216,-500.0,0.00022739,2]
[356025166,1741804254225,-500.0,0.00022739,2]
[356025167,1741804254234,-500.0,0.00022739,2]
[356025168,1741804254243,-500.0,0.00022739,2]
[356025169,1741804254253,-500.0,0.00022739,2]
[356025170,1741804254262,-151.0,0.00022739,7]
[356025171,1741804254272,-500.0,0.00022739,2]
[356025172,1741804254281,-151.0,0.00022739,7]
[356025173,1741804254291,-500.0,0.00022739,2]
[356025174,1741804254300,-500.0,0.00022739,2]
[356025175,1741804254309,-503.09,0.00022739,2]
[356025176,1741804254318,-500.0,0.00022739,2]
[356025177,1741804254328,-500.0,0.00022739,2]
[356025178,1741804254338,-1823.59,0.00022739,2]
[356025179,1741804254347,-1079.2,0.00022739,2]
[356025180,1741804254356,-500.0,0.00022739,2]
[356025181,1741804254366,-500.0,0.00022739,2]
[356025182,1741804254376,-151.0,0.00022739,7]
[356025183,1741804254385,-500.0,0.00022739,2]
[356025184,1741804254395,-515.47303822,0.00022739,2]
[356025185,1741804254404,-519.13,0.00022739,2]
[356025186,1741804254413,-500.0,0.00022739,2]
[356025187,1741804254423,-1879.28,0.00022739,2]
[356025188,1741804254432,-500.0,0.00022739,2]
[356025189,1741804254441,-584.69,0.00022739,2]
[356025190,1741804254450,-500.0,0.00022739,2]
[356025191,1741804254460,-1161.91,0.00022739,2]
[356025192,1741804254470,-1715.04,0.00022739,2]
[356025193,1741804254479,-500.0,0.00022739,2]
[356025194,1741804254489,-151.0,0.00022739,7]
[356025195,1741804254498,-1896.14,0.00022739,2]
[356025196,1741804254507,-500.0,0.00022739,2]
[356025197,1741804254517,-1122.11,0.00022739,2]
[356025198,1741804254527,-500.0,0.00022739,2]